bitfinex/quotes_SOLUSD_20241220
["timestamp","ask_amount","ask_price","bid_price","bid_amount"]
[1734706167722,6.0873,187.58,187.42,0.12549]
[1734706167723,6.0873,187.58,187.44,0.12549]
[1734706168129,8.98175515,187.59,187.46,0.12549]
[1734706168534,6.82947733,187.59,187.48,0.12549]
[1734706169212,6.82947733,187.59,187.45,20.0]
[1734706169408,6.82947733,187.59,187.46,0.12549]
[1734706169647,6.82947733,187.59,187.46,13.46159]
[1734706171311,6.82947733,187.59,187.42,13.3383]
[1734706171514,6.82947733,187.59,187.38,7.39127213]
[1734706171515,20.0,187.56,187.38,7.39127213]
[1734706171842,20.0,187.56,187.41,20.0]
[1734706172050,20.0,187.56,187.38,20.73247213]
[1734706172552,20.0,187.56,187.39,0.12549]
[1734706173311,26.82947733,187.56,187.39,0.12549]
[1734706173711,26.82947733,187.56,187.38,19.9325]
[1734706174610,26.82947733,187.56,187.39,0.12549]
[1734706174907,20.0,187.52,187.38,19.9325]
[1734706175103,20.0,187.48,187.32,6.0542]
[1734706175338,6.82947733,187.47,187.32,6.0542]
[1734706177137,20.0,187.44,187.27,39.9406]
[1734706177813,26.82947733,187.44,187.27,39.9406]
[1734706178011,6.82947733,187.43,187.27,39.9406]
[1734706178311,6.82947733,187.43,187.3,0.12549]
[1734706178843,20.0,187.44,187.3,0.12549]
[1734706179025,20.0,187.45,187.3,0.12549]
[1734706179345,20.0,187.44,187.3,0.12549]
[1734706179515,20.0,187.44,187.29,13.3482]
[1734706180613,20.0,187.42,187.3,0.12549]
[1734706180813,2.11737335,187.47,187.32,0.12549]
[1734706181150,6.82947733,187.49,187.32,0.12549]
[1734706181812,6.82947733,187.49,187.34,0.12549]
[1734706182136,7.9126,187.51,187.37,0.12549]
[1734706182332,6.82947733,187.55,187.39,0.12549]
[1734706183212,6.82947733,187.55,187.34,0.80007029]
[1734706183412,6.75798234,187.54,187.33,13.3454]
[1734706183637,20.0,187.5,187.33,13.3454]
[1734706184022,20.0,187.5,187.34,0.12549]
[1734706184221,20.0,187.5,187.34,0.92576262]
[1734706184743,6.82947733,187.53,187.37,0.12549]
[1734706185128,8.76575178,187.54,187.37,0.12549]
[1734706185129,2.13325944,187.54,187.37,0.12549]
[1734706185331,6.6111,187.56,187.37,0.12549]
[1734706185520,6.6111,187.56,187.39,0.12549]
[1734706186037,13.44057733,187.56,187.41,0.12549]
[1734706186435,8.83368588,187.59,187.44,0.12549]
[1734706186744,19.9579,187.6,187.44,0.12549]
[1734706186942,8.99749707,187.6,187.44,0.12549]
[1734706187423,6.82947733,187.59,187.43,6.2222]
[1734706187836,13.46196967,187.59,187.4,13.3404]
[1734706188149,20.0,187.55,187.38,21.1594]
[1734706188350,26.82947733,187.55,187.38,21.1594]
[1734706189158,26.82947733,187.55,187.39,0.12549]
[1734706189958,6.82947733,187.54,187.39,0.12549]
[1734706190448,20.0,187.51,187.34,13.3442]
[1734706191333,26.82947733,187.51,187.34,13.3442]
[1734706191735,26.82947733,187.51,187.35,0.12549]
[1734706192049,26.82947733,187.51,187.36,13.3432]
[1734706192626,6.82947733,187.5,187.36,13.3432]
[1734706192848,6.82947733,187.5,187.37,0.12549]
[1734706193057,6.82947733,187.5,187.36,13.3432]
[1734706194456,19.55786967,187.5,187.33,21.4013]
[1734706194929,20.0,187.47,187.34,0.12549]
[1734706195122,13.46196967,187.5,187.34,0.12549]
[1734706195328,6.82947733,187.5,187.34,0.92578021]
[1734706195936,20.0,187.54,187.34,0.92578021]
[1734706196136,26.82947733,187.54,187.37,0.12549]
[1734706196546,26.82947733,187.54,187.39,0.12549]
[1734706196854,6.82947733,187.54,187.39,0.12549]
[1734706197043,6.82947733,187.54,187.39,0.92552165]
[1734706197953,6.82947733,187.54,187.41,0.12549]
[1734706198342,6.63249234,187.53,187.34,13.3447]
[1734706198547,20.0,187.5,187.34,13.3447]
[1734706198862,20.0,187.47,187.35,0.12549]
[1734706199024,33.37347733,187.46,187.31,6.3589]
[1734706199219,40.00596967,187.46,187.31,6.3589]
[1734706199543,40.00596967,187.46,187.32,0.12549]
[1734706200057,40.00596967,187.46,187.31,6.3589]
[1734706200452,40.00596967,187.46,187.32,13.47159]
[1734706200626,33.37347733,187.46,187.32,13.47159]
[1734706201354,20.0,187.46,187.32,13.47159]
[1734706201660,21.5943,187.47,187.31,6.3589]
[1734706201957,20.0,187.39,187.23,6.2862]
[1734706202161,26.82947733,187.39,187.23,6.2862]
[1734706202339,20.0,187.38,187.23,6.2862]
[1734706202543,20.0,187.36,187.23,6.2862]
[1734706202734,20.0,187.36,187.23,19.6385]
[1734706202932,6.4832,187.42,187.24,0.80080433]
[1734706203143,6.4832,187.42,187.28,13.3489]
[1734706203343,6.4832,187.42,187.24,13.3514]
[1734706203849,20.0,187.39,187.24,13.3514]
[1734706204055,20.0,187.39,187.25,0.80076976]
[1734706204574,20.0,187.39,187.28,0.92613758]
[1734706204728,13.31267733,187.42,187.28,0.92613758]
[1734706204930,13.31267733,187.42,187.28,0.80064758]
[1734706205563,13.31267733,187.42,187.27,20.0]
[1734706206232,20.0,187.38,187.27,20.0]
[1734706206634,6.82947733,187.41,187.27,20.0]
[1734706206831,20.0,187.38,187.27,20.0]
[1734706207668,6.82947733,187.41,187.27,20.0]
[1734706208637,20.0,187.38,187.27,20.0]
[1734706209027,6.82947733,187.37,187.27,20.0]
[1734706209229,20.0,187.34,187.18,6.2561]
[1734706209547,1.5063,187.35,187.18,6.2561]
[1734706209548,20.0,187.3,187.18,6.2561]
[1734706209857,26.4932,187.3,187.17,0.6733706]
[1734706211326,33.32267733,187.3,187.17,0.6733706]
[1734706212037,26.82947733,187.3,187.18,14.28263006]
[1734706212241,20.0,187.32,187.18,14.28263006]
[1734706212661,20.0,187.32,187.18,13.48159]
[1734706213859,26.82947733,187.32,187.18,13.48159]
[1734706214070,20.0,187.28,187.17,0.6733706]
[1734706214264,26.82947733,187.28,187.17,0.6733706]
[1734706214460,20.0,187.24,187.17,0.6733706]
[1734706214861,26.82947733,187.24,187.17,0.6733706]
[1734706216345,6.1631,187.23,187.17,0.6733706]
[1734706216872,20.0,187.2,187.14,0.1041143]
[1734706217174,6.82947733,187.19,187.05,6.281]
[1734706217351,6.82947733,187.19,186.98,1.47497559]
[1734706217352,6.82947733,187.19,186.99,13.3696]
[1734706217668,6.82947733,187.19,187.0,0.80162685]
[1734706217879,6.82947733,187.19,187.01,0.12549]
[1734706218183,6.82947733,187.19,186.99,13.3696]
[1734706218184,7.7942,187.23,187.05,0.12549]
[1734706218486,7.7942,187.23,187.07,20.0]
[1734706218659,7.7942,187.23,187.08,0.12549]
[1734706219174,14.50234399,187.23,187.08,0.12549]
[1734706219370,6.83363399,187.22,187.06,14.9201]
[1734706219683,6.70814399,187.22,187.07,0.12549]
[1734706221543,20.0,187.19,186.99,40.1089]
[1734706221764,6.70814399,187.18,187.0,0.8015626]
[1734706223099,6.70814399,187.18,187.01,13.3682]
[1734706223255,20.0,187.15,186.98,0.6733706]
[1734706223458,14.18520299,187.14,186.98,0.6733706]
[1734706223692,6.2011,187.13,186.98,0.6733706]
[1734706224163,6.2011,187.13,186.99,13.3696]
[1734706224366,12.90924399,187.13,186.99,13.3696]
[1734706224677,6.70814399,187.12,186.98,0.6733706]
[1734706225287,6.70814399,187.12,186.98,14.0435706]
[1734706225471,8.0346,187.18,186.98,14.0435706]
[1734706225697,22.21980299,187.18,186.98,14.84534525]
[1734706225995,22.21980299,187.18,186.99,0.12549]
[1734706226286,22.21980299,187.18,186.98,14.0435706]
[1734706226856,20.0,187.15,186.98,14.0435706]
[1734706227055,27.477059,187.15,186.98,14.0435706]
[1734706227294,27.477059,187.15,186.99,0.12549]
[1734706228460,7.477059,187.15,187.01,0.12549]
[1734706228857,7.477059,187.15,187.03,0.12549]
[1734706229164,14.74274399,187.18,187.02,0.8016614]
[1734706229379,14.74274399,187.18,187.03,13.3668]
[1734706229576,7.477059,187.19,187.06,0.12549]
[1734706230095,7.477059,187.19,187.05,6.0812]
[1734706230300,14.18520299,187.19,187.04,0.80166214]
[1734706230490,6.70814399,187.18,187.03,13.3668]
[1734706230797,7.477059,187.17,187.0,7.6138]
[1734706230995,14.18520299,187.17,187.0,20.9827]
[1734706231197,20.0,187.13,187.0,7.6138]
[1734706231383,6.4084,187.12,186.98,0.6733706]
[1734706231575,20.0,187.09,186.98,0.6733706]
[1734706231895,27.477059,187.09,186.98,0.6733706]
[1734706232197,7.477059,187.09,186.98,0.6733706]
[1734706232784,14.18520299,187.09,186.98,0.6733706]
[1734706233099,20.0,187.06,186.98,0.6733706]
[1734706233302,20.0,187.05,186.88,13.3775]
[1734706233479,20.0,187.01,186.84,27.26697187]
[1734706233672,20.0,187.01,186.84,26.4646]
[1734706233901,20.0,187.01,186.84,27.26707448]
[1734706234112,7.7137,187.04,186.84,27.26707448]
[1734706234274,7.7137,187.04,186.84,67.40767448]
[1734706234613,6.70814399,187.03,186.84,67.40767448]
[1734706235068,6.70814399,187.03,186.89,0.12549]
[1734706235274,6.70814399,187.06,186.9,13.3761]
[1734706235697,6.70814399,187.06,186.91,0.92764535]
[1734706235898,6.5282,187.09,186.94,0.12549]
[1734706236071,14.18520299,187.08,186.94,20.0]
[1734706236404,5.04690497,187.14,186.9,13.3761]
[1734706236405,6.70814399,187.07,186.9,13.3761]
[1734706236570,0.12549,187.06,186.9,13.3761]
[1734706236896,6.70814399,187.05,186.9,13.3761]
[1734706237304,6.70814399,187.05,186.92,13.3747]
[1734706237604,6.70814399,187.1,186.92,13.3747]
[1734706238202,13.77064744,187.1,186.93,0.12549]
[1734706238376,13.77064744,187.1,186.95,0.12549]
[1734706238777,13.77064744,187.1,186.96,6.4653]
[1734706239277,13.77064744,187.1,186.95,1.6149]
[1734706239479,13.77064744,187.1,186.94,13.3732]
[1734706239874,13.77064744,187.1,186.94,14.17513005]
[1734706240701,20.0,187.07,186.94,13.3732]
[1734706240900,33.77064744,187.06,186.9,13.3754]
[1734706241198,0.12549,187.05,186.9,13.3754]
[1734706241393,13.77064744,187.04,186.9,13.3754]
[1734706242502,6.70814399,187.04,186.9,13.3754]
[1734706243979,6.70814399,187.04,186.9,14.17763566]
[1734706244277,6.70814399,187.04,186.9,13.3754]
[1734706245405,20.0,187.01,186.87,19.9273]
[1734706245706,13.05034399,187.0,186.87,6.5492]
[1734706246080,20.0,186.97,186.85,1.6091]
[1734706246285,20.0,186.93,186.84,20.0]
[1734706246679,6.3422,187.0,186.84,26.5564]
[1734706246893,13.05034399,187.0,186.84,26.5564]
[1734706247573,13.05034399,187.0,186.84,39.9361]
[1734706247773,20.0,186.97,186.84,20.0]
[1734706247978,26.70814399,186.97,186.84,20.0]
[1734706248201,6.70814399,186.96,186.84,20.0]
[1734706255817,6.70814399,186.96,186.84,33.3798]
[1734706256007,6.3422,187.0,186.84,33.3798]
[1734706256187,6.3422,187.0,186.86,1.5558]
[1734706256392,6.3422,187.0,186.87,0.12549]
[1734706256722,6.3422,187.0,186.86,1.5558]
[1734706256723,6.70814399,187.02,186.88,13.3775]
[1734706257217,6.70814399,187.02,186.89,6.0074]
[1734706257418,13.29391098,187.06,186.89,6.0074]
[1734706257601,6.70814399,187.06,186.9,13.50159]
[1734706257792,6.3744,187.1,186.94,0.12549]
[1734706258614,6.3744,187.1,186.96,0.12549]
[1734706258800,6.70814399,187.12,186.97,1.5321]
[1734706259120,6.70814399,187.12,186.99,6.5663]
[1734706260755,6.70814399,187.12,186.97,1.5321]
[1734706261663,6.70814399,187.12,186.95,13.3725]
[1734706261664,20.0,187.09,186.95,13.3725]
[1734706261949,6.70814399,187.12,186.96,0.12549]
[1734706262109,6.70814399,187.12,186.96,0.92727372]
[1734706262309,6.0616,187.15,186.96,0.92727372]
[1734706262735,6.0616,187.15,186.97,13.3711]
[1734706263048,6.70814399,187.17,187.02,1.6248]
[1734706263645,6.70814399,187.17,187.03,6.27579]
[1734706264347,1.5207,187.24,187.07,20.12549]
[1734706264515,8.22884399,187.24,187.04,0.80150087]
[1734706264851,13.01142163,187.23,187.04,13.3661]
[1734706265216,13.01142163,187.23,187.05,0.12549]
[1734706265526,13.01142163,187.23,187.04,13.3661]
[1734706265527,20.0,187.2,187.04,13.3661]
[1734706265739,26.70814399,187.2,187.04,13.3661]
[1734706266054,26.70814399,187.2,187.05,0.12549]
[1734706266427,6.70814399,187.2,187.05,0.12549]
[1734706266737,6.70814399,187.2,187.06,13.3646]
[1734706267417,6.70814399,187.2,187.07,0.12549]
[1734706267816,6.70814399,187.2,187.06,13.3646]
[1734706268521,6.70814399,187.2,187.03,6.1503]
[1734706268723,6.30327764,187.19,187.03,6.1503]
[1734706269056,6.70814399,187.18,187.03,6.1503]
[1734706269417,20.0,187.15,187.03,6.1503]
[1734706270067,6.70814399,187.15,187.03,6.1503]
[1734706270814,20.0,187.11,187.0,13.3683]
[1734706271349,20.0,187.11,186.97,6.0282]
[1734706271577,26.70814399,187.11,186.98,0.80188405]
[1734706271753,20.0,187.11,186.95,2.45947871]
[1734706271951,6.70814399,187.14,186.98,13.3704]
[1734706272258,13.01142163,187.21,187.03,0.12549]
[1734706272424,6.70814399,187.21,187.03,0.9269397]
[1734706272826,13.01142163,187.21,187.04,13.3661]
[1734706273035,6.30327764,187.2,187.02,1.5235]
[1734706273235,6.70814399,187.19,187.04,0.12549]
[1734706273724,6.1012,187.24,187.09,0.12549]
[1734706273922,6.70814399,187.23,187.09,0.12549]
[1734706274839,6.70814399,187.23,187.1,13.3618]
[1734706275148,6.70814399,187.23,187.11,0.12549]
[1734706275860,6.6563,187.28,187.14,0.12549]
[1734706276060,6.70814399,187.29,187.14,0.12549]
[1734706276260,6.70814399,187.28,187.14,0.12549]
[1734706276431,13.01142163,187.28,187.13,1.6396]
[1734706276630,6.70814399,187.27,187.13,1.6396]
[1734706276831,6.70814399,187.27,187.13,14.9992]
[1734706277058,6.70814399,187.27,187.14,0.92667539]
[1734706277364,6.70814399,187.32,187.14,0.92667539]
[1734706277567,6.70814399,187.3,187.16,0.12549]
[1734706277735,6.70814399,187.3,187.16,0.92645493]
[1734706278962,6.70814399,187.3,187.17,13.3568]
[1734706279167,6.70814399,187.3,187.15,6.1]
[1734706279463,13.01142163,187.3,187.15,6.1]
[1734706279627,6.70814399,187.29,187.15,6.1]
[1734706279968,13.01142163,187.29,187.13,1.6396]
[1734706280536,20.0,187.26,187.11,6.4563]
[1734706280756,8.30834399,187.25,187.11,6.4563]
[1734706281044,20.0,187.22,187.11,6.4563]
[1734706281254,20.0,187.22,187.05,6.0285]
[1734706281255,20.0,187.18,187.05,6.0285]
[1734706281957,26.70814399,187.18,187.05,6.0285]
[1734706282967,26.70814399,187.18,187.06,0.12549]
[1734706283665,6.70814399,187.18,187.06,0.12549]
[1734706283971,6.4927,187.21,187.06,0.12549]
[1734706284167,13.20084399,187.21,187.06,0.12549]
[1734706284467,6.70814399,187.21,187.08,0.12549]
[1734706284667,7.90347764,187.25,187.08,0.12549]
[1734706284849,6.70814399,187.24,187.08,0.12549]
[1734706285051,6.70814399,187.24,187.07,13.3639]
[1734706285361,6.30327764,187.23,187.07,13.3639]
[1734706285574,6.70814399,187.22,187.07,13.3639]
[1734706285952,6.70814399,187.22,187.05,6.0285]
[1734706286260,20.0,187.18,186.95,19.7445]
[1734706286439,33.13691163,187.17,186.95,19.7445]
[1734706286636,20.0,187.13,186.95,19.7445]
[1734706286843,20.0,187.09,186.95,6.3726]
[1734706287169,6.70814399,187.08,186.95,6.3726]
[1734706287469,20.0,187.05,186.91,6.6268]
[1734706288167,6.70814399,187.08,186.92,13.3747]
[1734706288347,20.0,187.05,186.93,0.12549]
[1734706288550,20.0,187.05,186.92,13.3747]
[1734706288757,1.5704,187.09,186.93,0.80204817]
[1734706289069,13.01142163,187.12,186.93,0.80204817]
[1734706289259,6.70814399,187.11,186.94,0.12549]
[1734706289865,6.70814399,187.11,186.96,0.12549]
[1734706290051,20.0,187.08,186.96,0.12549]
[1734706290354,20.0,187.08,186.95,13.3725]
[1734706290842,6.70814399,187.11,186.96,0.9274152]
[1734706291353,1.6463,187.14,186.96,0.9274152]
[1734706291671,8.35444399,187.14,186.96,0.9274152]
[1734706291851,5.02827881,187.18,187.01,0.12549]
[1734706292161,6.70814399,187.19,187.06,0.12549]
[1734706292373,13.31984399,187.23,187.06,0.92685008]
[1734706292876,6.70814399,187.23,187.08,0.12549]
[1734706293078,6.70814399,187.23,187.08,0.92676558]
[1734706293276,1.536,187.26,187.09,13.3625]
[1734706293570,14.34459416,187.26,187.09,13.3625]
[1734706294150,14.34459416,187.26,187.1,0.92669572]
[1734706294685,12.80859416,187.25,187.09,6.1912]
[1734706295177,12.80859416,187.25,187.1,0.12549]
[1734706295355,6.50531652,187.25,187.1,14.28858028]
[1734706295856,6.50531652,187.25,187.1,0.12549]
[1734706296062,12.80859416,187.25,187.09,6.1912]
[1734706296262,6.30327764,187.24,187.09,6.1912]
[1734706297481,6.30327764,187.24,187.1,0.12549]
[1734706297649,6.50531652,187.25,187.1,14.28837963]
[1734706297854,6.50531652,187.25,187.1,0.12549]
[1734706298368,6.50531652,187.25,187.12,0.12549]
[1734706298571,1.536,187.26,187.12,0.92668418]
[1734706298757,6.6117,187.28,187.12,0.92668418]
[1734706299579,13.11701652,187.28,187.12,0.92668418]
[1734706299880,13.11701652,187.28,187.14,0.12549]
[1734706300175,6.50531652,187.3,187.14,0.92653587]
[1734706300477,1.5214,187.31,187.14,0.92653587]
[1734706300879,12.90037764,187.33,187.15,1.5433]
[1734706301062,19.40569416,187.33,187.15,1.5433]
[1734706302287,19.40569416,187.33,187.16,13.48299]
[1734706303084,6.50531652,187.32,187.16,13.48299]
[1734706303282,6.50531652,187.32,187.16,14.2839302]
[1734706303482,6.50531652,187.32,187.16,14.1584402]
[1734706303883,6.3219,187.38,187.2,0.12549]
[1734706304054,6.3219,187.38,187.22,0.12549]
[1734706304257,6.50531652,187.39,187.26,6.0646]
[1734706304557,8.01641652,187.41,187.27,0.80059895]
[1734706304880,6.50531652,187.4,187.27,0.80059895]
[1734706305255,6.50531652,187.4,187.28,0.12549]
[1734706305454,1.5111,187.41,187.29,0.80053729]
[1734706305660,1.5111,187.41,187.3,0.12549]
[1734706305860,1.5111,187.41,187.29,0.80053729]
[1734706306055,1.5111,187.41,187.26,6.0646]
[1734706306372,1.5111,187.41,187.27,0.12549]
[1734706306975,1.5111,187.41,187.26,6.86508698]
[1734706307382,7.17868712,187.45,187.3,20.12549]
[1734706307687,0.6733706,187.45,187.32,0.12549]
[1734706307986,0.6733706,187.45,187.33,0.8003335]
[1734706308189,0.6733706,187.45,187.33,14.1457335]
[1734706308601,0.6733706,187.45,187.34,8.0421]
[1734706308888,0.6733706,187.45,187.35,0.80016533]
[1734706309130,0.6733706,187.45,187.37,20.0]
[1734706309296,0.6733706,187.45,187.38,0.79998953]
[1734706309457,0.6733706,187.45,187.34,8.0421]
[1734706309657,0.6733706,187.45,187.4,24.65286565]
[1734706309857,0.6733706,187.45,187.41,0.79977875]
[1734706310157,0.6733706,187.45,187.42,0.12549]
[1734706310363,0.6733706,187.45,187.43,0.7998779]
[1734706310677,0.6733706,187.45,187.39,20.79988451]
[1734706311057,0.6733706,187.45,187.4,0.12549]
[1734706311263,0.6733706,187.45,187.42,0.12549]
[1734706311463,0.6733706,187.45,187.44,0.12549]
[1734706311663,0.6733706,187.45,187.44,13.46309]
[1734706311876,7.06e-05,187.45,187.44,13.46309]
[1734706312894,0.6733706,187.64,187.49,0.12549]
[1734706313089,0.6733706,187.64,187.5,20.0]
[1734706313299,0.6733706,187.64,187.51,0.92491906]
[1734706313483,0.6733706,187.64,187.51,40.93833656]
[1734706313681,0.6733706,187.64,187.57,0.12549]
[1734706313878,0.6733706,187.64,187.57,0.9246739]
[1734706314385,0.6733706,187.64,187.58,6.2023]
[1734706314583,0.6733706,187.64,187.56,13.329]
[1734706315068,0.6733706,187.64,187.57,0.12549]
[1734706315976,0.6733706,187.64,187.53,6.1068]
[1734706316398,0.6733706,187.64,187.54,0.12549]
[1734706316973,0.6733706,187.64,187.54,0.92489036]
[1734706319292,0.6733706,187.64,187.5,0.79937092]
[1734706319877,0.6733706,187.64,187.49,13.3337]
[1734706320079,0.6733706,187.64,187.47,7.8225]
[1734706320280,20.0,187.61,187.48,0.79962676]
[1734706320478,20.0,187.61,187.47,7.8225]
[1734706320806,20.0,187.61,187.48,13.3347]
[1734706321505,20.0,187.61,187.5,0.12549]
[1734706322984,20.0,187.61,187.47,7.8225]
[1734706323380,25.81198318,187.61,187.43,0.79955134]
[1734706323599,25.81198318,187.61,187.42,6.5008]
[1734706323794,25.81198318,187.61,187.44,0.12549]
[1734706323996,7.2596706,187.64,187.46,0.12549]
[1734706324201,7.2596706,187.64,187.48,0.12549]
[1734706324705,7.2596706,187.64,187.49,0.79964791]
[1734706324905,7.2596706,187.64,187.5,0.12549]
[1734706325200,7.2596706,187.64,187.45,13.3368]
[1734706325383,20.0,187.6,187.42,7.30062839]
[1734706325592,0.12549,187.59,187.37,6.2762]
[1734706325788,20.12549,187.55,187.36,0.79996631]
[1734706326010,20.0,187.51,187.33,0.80025808]
[1734706326680,20.0,187.51,187.33,14.14565808]
[1734706327296,20.0,187.51,187.33,13.3454]
[1734706327479,20.0,187.51,187.32,6.2762]
[1734706327676,20.0,187.51,187.29,15.67418978]
[1734706327677,20.0,187.46,187.29,1.5264]
[1734706327995,1.571,187.45,187.27,6.3294]
[1734706328403,20.0,187.42,187.25,13.3505]
[1734706328604,20.0,187.42,187.25,69.4439175]
[1734706328914,1.571,187.45,187.26,0.92609807]
[1734706329395,6.0757,187.49,187.3,16.20549]
[1734706329585,6.0757,187.49,187.34,20.12549]
[1734706329794,6.0757,187.49,187.34,0.12549]
[1734706330196,6.0757,187.49,187.31,0.80019006]
[1734706330791,6.0757,187.49,187.32,29.55159]
[1734706331015,6.0757,187.49,187.34,0.12549]
[1734706331710,1.602,187.52,187.36,0.12549]
[1734706332009,1.602,187.52,187.38,0.12549]
[1734706332214,1.602,187.52,187.35,0.80021033]
[1734706332583,1.602,187.52,187.35,0.12549]
[1734706332815,1.602,187.52,187.34,0.80020437]
[1734706333116,20.0,187.48,187.28,1.6481]
[1734706333303,1.5915,187.42,187.25,13.3506]
[1734706333506,1.5915,187.42,187.23,0.80066644]
[1734706333811,20.0,187.39,187.22,8.1789]
[1734706334306,1.5915,187.42,187.23,14.15331203]
[1734706334510,1.5915,187.42,187.23,40.85841203]
[1734706334820,21.4316,187.61,187.34,40.0134175]
[1734706335005,20.0,187.59,187.35,0.80011229]
[1734706335387,20.0,187.59,187.44,0.12549]
[1734706335591,8.1299,187.63,187.45,20.79963978]
[1734706335799,8.1299,187.63,187.45,0.79963978]
[1734706336206,8.1299,187.63,187.47,0.12549]
[1734706336407,8.1299,187.63,187.49,0.12549]
[1734706337215,0.6733706,187.64,187.49,0.12549]
[1734706337216,0.6733706,187.64,187.55,20.0]
[1734706337525,0.6733706,187.64,187.56,20.79917634]
[1734706337724,0.6733706,187.64,187.56,0.79917634]
[1734706337936,0.6733706,187.64,187.51,20.0]
[1734706338228,0.6733706,187.64,187.5,1.566]
[1734706339500,20.0,187.6,187.44,2.44463795]
[1734706339704,20.0,187.6,187.46,0.12549]
[1734706339995,0.6733706,187.64,187.48,0.12549]
[1734706340229,0.6733706,187.64,187.5,0.12549]
[1734706340529,0.6733706,187.64,187.45,13.3368]
[1734706341008,0.12549,187.63,187.44,2.44470185]
[1734706341210,0.12549,187.63,187.44,0.79980185]
[1734706341400,20.12549,187.63,187.41,14.13926645]
[1734706341606,20.12549,187.63,187.44,0.12549]
[1734706342029,20.12549,187.63,187.41,14.13926645]
[1734706342931,0.12549,187.61,187.38,6.3758]
[1734706343132,0.12549,187.56,187.38,6.3758]
[1734706343339,0.12549,187.56,187.33,13.3449]
[1734706343633,20.0,187.52,187.32,7.07656139]
[1734706343802,20.0,187.52,187.32,6.2763]
[1734706344304,20.0,187.52,187.33,0.12549]
[1734706344509,20.0,187.52,187.32,6.2763]
[1734706344804,20.0,187.51,187.32,6.2763]
[1734706345004,0.12549,187.5,187.32,6.2763]
[1734706345327,1.557,187.49,187.26,6.5688]
[1734706345534,1.557,187.49,187.28,0.12549]
[1734706345839,1.557,187.49,187.29,0.80042512]
[1734706346000,1.557,187.49,187.31,0.12549]
[1734706346196,1.557,187.49,187.31,0.92575197]
[1734706346417,1.557,187.49,187.31,0.12549]
[1734706346615,1.557,187.49,187.3,13.3471]
[1734706347032,1.557,187.49,187.31,0.12549]
[1734706347221,1.557,187.49,187.31,0.92593679]
[1734706347631,1.557,187.49,187.31,0.87593679]
[1734706348155,1.557,187.49,187.31,0.07549]
[1734706348441,1.557,187.49,187.27,0.80053113]
[1734706348736,1.557,187.49,187.28,13.3489]
[1734706349037,1.557,187.49,187.31,20.0]
[1734706349237,1.557,187.49,187.33,20.0]
[1734706349439,1.557,187.49,187.34,0.80018738]
[1734706349608,1.557,187.49,187.36,0.12549]
[1734706349812,7.5323,187.55,187.36,0.92563608]
[1734706350538,7.5323,187.55,187.36,13.3432]
[1734706351043,7.5323,187.55,187.37,0.12549]
[1734706351337,20.0,187.52,187.37,0.12549]
[1734706351844,7.5323,187.55,187.37,0.9255977]
[1734706352216,7.5323,187.55,187.36,13.3432]
[1734706352217,7.5323,187.55,187.35,13.3435]
[1734706352528,7.5323,187.55,187.36,0.12549]
[1734706352707,7.5323,187.55,187.38,0.12549]
[1734706354614,7.5323,187.55,187.37,13.3425]
[1734706354615,7.5323,187.55,187.37,0.92557311]
[1734706354808,6.0938,187.6,187.41,0.12549]
[1734706355032,6.0938,187.6,187.45,7.90709]
[1734706355218,20.6733706,187.64,187.47,0.12549]
[1734706355422,20.6733706,187.64,187.49,0.12549]
[1734706355619,0.6733706,187.64,187.5,0.79960397]
[1734706355822,0.6733706,187.64,187.51,0.12549]
[1734706356015,0.6733706,187.64,187.53,0.12549]
[1734706356615,0.6733706,187.64,187.54,14.12982213]
[1734706356823,0.6733706,187.64,187.5,20.0]
[1734706357029,0.6733706,187.64,187.51,0.79956119]
[1734706357226,0.6733706,187.64,187.47,0.79958131]
[1734706357629,0.6733706,187.64,187.48,0.12549]
[1734706358245,0.6733706,187.64,187.46,0.12549]
[1734706358429,0.6733706,187.64,187.46,0.92524985]
[1734706358631,0.6733706,187.64,187.46,14.26074985]